[Event "*** Titled Tuesday Blitz"]
[Site "Chess.com"]
[Date "2020.01.07"]
[Round "9"]
[White "FelixJoseYnojosa"]
[Black "maciek_92"]
[Result "0-1"]
[WhiteElo "2663"]
[BlackElo "2820"]
[TimeControl "180+2"]
[EndTime "15:08:53 PST"]
[Termination "maciek_92 won by checkmate"]

1. c4 {[%clk 0:02:59.3]} 1... f5 {[%clk 0:02:51.8]} 2. Nf3 {[%clk 0:02:58.9]}
2... Nf6 {[%clk 0:02:52.9]} 3. g3 {[%clk 0:02:59.1]} 3... g6 {[%clk 0:02:54.2]}
4. Bg2 {[%clk 0:03:00.2]} 4... Bg7 {[%clk 0:02:55.9]} 5. O-O {[%clk 0:03:01.4]}
5... O-O {[%clk 0:02:57.6]} 6. Nc3 {[%clk 0:03:02.6]} 6... d6 {[%clk 0:02:58.8]}
7. d3 {[%clk 0:03:03.8]} 7... e5 {[%clk 0:02:59.3]} 8. Rb1 {[%clk 0:03:04.8]}
8... a5 {[%clk 0:02:59.8]} 9. a3 {[%clk 0:03:05.3]} 9... Nc6 {[%clk 0:02:53.8]}
10. b4 {[%clk 0:03:05.6]} 10... axb4 {[%clk 0:02:55.3]} 11. axb4 {[%clk
0:03:06.8]} 11... h6 {[%clk 0:02:56.2]} 12. b5 {[%clk 0:03:07.8]} 12... Ne7
{[%clk 0:02:57.4]} 13. Bb2 {[%clk 0:02:50.5]} 13... g5 {[%clk 0:02:57]} 14. Nd2
{[%clk 0:02:49.9]} 14... c5 {[%clk 0:02:47.5]} 15. bxc6 {[%clk 0:02:47.1]} 15...
bxc6 {[%clk 0:02:49.4]} 16. f4 {[%clk 0:02:45]} 16... Ng4 {[%clk 0:02:47.8]} 17.
Rf3 {[%clk 0:02:33.9]} 17... Qb6+ {[%clk 0:02:44]} 18. Kh1 {[%clk 0:02:21.4]}
18... Nf2+ {[%clk 0:02:43.8]} 19. Rxf2 {[%clk 0:02:22.2]} 19... Qxf2 {[%clk
0:02:45.7]} 20. fxg5 {[%clk 0:02:21.6]} 20... hxg5 {[%clk 0:02:46]} 21. Nf3
{[%clk 0:02:20.4]} 21... g4 {[%clk 0:02:41.3]} 22. Ng5 {[%clk 0:02:21.4]} 22...
Bf6 {[%clk 0:02:36.8]} 23. Bc1 {[%clk 0:02:21.9]} 23... Kg7 {[%clk 0:02:32.9]}
24. Qd2 {[%clk 0:02:17.1]} 24... Rh8 {[%clk 0:02:30.1]} 25. Nce4 {[%clk
0:01:48.9]} 25... fxe4 {[%clk 0:02:10.3]} 26. Nxe4 {[%clk 0:01:49.6]} 26... Qf5
{[%clk 0:02:11.6]} 27. Bb2 {[%clk 0:01:34]} 27... Qh5 {[%clk 0:02:01.6]} 28. h4
{[%clk 0:01:29.4]} 28... gxh3 {[%clk 0:01:54.6]} 29. Bf3 {[%clk 0:01:28.5]}
29... Bg4 {[%clk 0:01:50.3]} 30. Rf1 {[%clk 0:01:28.5]} 30... Raf8 {[%clk
0:01:50.2]} 31. d4 {[%clk 0:01:29.1]} 31... Ng6 {[%clk 0:01:35.3]} 32. Nxd6
{[%clk 0:01:07.4]} 32... exd4 {[%clk 0:01:18.2]} 33. Bxd4 {[%clk 0:00:54.2]}
33... Bxf3+ {[%clk 0:01:18.4]} 34. Rxf3 {[%clk 0:00:55.1]} 34... Bxd4 {[%clk
0:01:16.2]} 35. Qxd4+ {[%clk 0:00:55.4]} 35... Qe5 {[%clk 0:01:17.6]} 36. Qa7+
{[%clk 0:00:51.4]} 36... Kh6 {[%clk 0:01:01.1]} 37. Nf7+ {[%clk 0:00:47.7]}
37... Rxf7 {[%clk 0:01:01.3]} 38. Qxf7 {[%clk 0:00:49.2]} 38... Qxe2 {[%clk
0:00:54.6]} 39. Rf2 {[%clk 0:00:49.4]} 39... Qe4+ {[%clk 0:00:49]} 40. Kg1
{[%clk 0:00:44.2]} 40... Rd8 {[%clk 0:00:40]} 41. Kh2 {[%clk 0:00:36.2]} 41...
Rd1 {[%clk 0:00:39.8]} 42. Kxh3 {[%clk 0:00:34.3]} 42... Rh1+ {[%clk 0:00:21.4]}
43. Rh2 {[%clk 0:00:35.3]} 43... Kg5 {[%clk 0:00:23.3]} 44. Qd7 {[%clk
0:00:27.3]} 44... Rf1 {[%clk 0:00:08.3]} 45. Qd2+ {[%clk 0:00:23.9]} 45... Kf6
{[%clk 0:00:05.3]} 46. Qd8+ {[%clk 0:00:19.4]} 46... Kg7 {[%clk 0:00:05.5]} 47.
Qd2 {[%clk 0:00:11.4]} 47... Qf5+ {[%clk 0:00:05.9]} 48. g4 {[%clk 0:00:11]}
48... Qf3# {[%clk 0:00:07.2]} 0-1

[Event "*** Titled Tuesday Blitz"]
[Site "Chess.com"]
[Date "2020.01.07"]
[Round "9"]
[White "benhal"]
[Black "chessking2151"]
[Result "1-0"]
[WhiteElo "2409"]
[BlackElo "2604"]
[TimeControl "180+2"]
[EndTime "15:09:00 PST"]
[Termination "benhal won by resignation"]

1. c4 {[%clk 0:03:01.9]} 1... Nf6 {[%clk 0:02:59.5]} 2. Nc3 {[%clk 0:03:02.4]}
2... e5 {[%clk 0:02:58.7]} 3. Nf3 {[%clk 0:03:01.5]} 3... Nc6 {[%clk 0:02:57]}
4. e3 {[%clk 0:03:02.8]} 4... Bb4 {[%clk 0:02:55.6]} 5. Qc2 {[%clk 0:03:03.2]}
5... d6 {[%clk 0:02:55.9]} 6. Nd5 {[%clk 0:02:40.2]} 6... Ba5 {[%clk 0:02:52.7]}
7. a3 {[%clk 0:02:39.5]} 7... Nxd5 {[%clk 0:02:51.2]} 8. cxd5 {[%clk 0:02:39]}
8... Ne7 {[%clk 0:02:52.3]} 9. Qa4+ {[%clk 0:02:30]} 9... c6 {[%clk 0:02:51.4]}
10. dxc6 {[%clk 0:02:29.4]} 10... bxc6 {[%clk 0:02:52]} 11. b4 {[%clk
0:02:27.5]} 11... Bb6 {[%clk 0:02:48.7]} 12. Bb2 {[%clk 0:02:29.1]} 12... O-O
{[%clk 0:02:46.9]} 13. Be2 {[%clk 0:02:28.7]} 13... e4 {[%clk 0:02:18.9]} 14.
Nd4 {[%clk 0:02:27.8]} 14... Bd7 {[%clk 0:02:08.2]} 15. Qc2 {[%clk 0:02:28.2]}
15... d5 {[%clk 0:02:01.3]} 16. O-O {[%clk 0:02:23.1]} 16... Rc8 {[%clk
0:01:58.7]} 17. Nb3 {[%clk 0:02:22]} 17... Ng6 {[%clk 0:01:55.9]} 18. Qc3 {[%clk
0:02:18.5]} 18... f6 {[%clk 0:01:55.7]} 19. d3 {[%clk 0:02:19.8]} 19... exd3
{[%clk 0:01:50.5]} 20. Qxd3 {[%clk 0:02:14.6]} 20... Ne5 {[%clk 0:01:50]} 21.
Qc2 {[%clk 0:02:15.2]} 21... Be8 {[%clk 0:01:46.7]} 22. Rac1 {[%clk 0:02:14]}
22... Bg6 {[%clk 0:01:46.8]} 23. Qd2 {[%clk 0:02:14.7]} 23... Qd6 {[%clk
0:01:32.4]} 24. Bd4 {[%clk 0:02:11.5]} 24... Rfe8 {[%clk 0:01:24.6]} 25. Bc5
{[%clk 0:02:08]} 25... Qd7 {[%clk 0:01:20.4]} 26. Nd4 {[%clk 0:02:08.5]} 26...
Be4 {[%clk 0:00:57.6]} 27. f3 {[%clk 0:02:07.3]} 27... Bg6 {[%clk 0:00:55.8]}
28. f4 {[%clk 0:01:58.5]} 28... Nc4 {[%clk 0:00:31.4]} 29. Bxc4 {[%clk
0:01:55.6]} 29... dxc4 {[%clk 0:00:33.3]} 30. Rxc4 {[%clk 0:01:56.4]} 30... Qd5
{[%clk 0:00:31.1]} 31. Rc3 {[%clk 0:01:57.6]} 31... Red8 {[%clk 0:00:28.7]} 32.
Qf2 {[%clk 0:01:58.6]} 32... Be4 {[%clk 0:00:26.5]} 33. Rfc1 {[%clk 0:01:56.4]}
33... Qd7 {[%clk 0:00:20.8]} 34. h3 {[%clk 0:01:50.9]} 34... Bd5 {[%clk
0:00:20.4]} 35. a4 {[%clk 0:01:51.2]} 35... Bxc5 {[%clk 0:00:20.5]} 36. Rxc5
{[%clk 0:01:52.2]} 36... Qb7 {[%clk 0:00:20.3]} 37. Qb2 {[%clk 0:01:48.8]} 37...
Qe7 {[%clk 0:00:16.7]} 38. Qc3 {[%clk 0:01:48.5]} 38... Kh8 {[%clk 0:00:15.4]}
39. Rc2 {[%clk 0:01:45.4]} 39... h5 {[%clk 0:00:15.6]} 40. Rf2 {[%clk
0:01:24.8]} 40... Qe4 {[%clk 0:00:15.5]} 41. Qc1 {[%clk 0:01:22.5]} 41... Rb8
{[%clk 0:00:15.6]} 42. b5 {[%clk 0:01:19.5]} 42... cxb5 {[%clk 0:00:16.2]} 43.
axb5 {[%clk 0:01:21.4]} 43... a6 {[%clk 0:00:15.9]} 44. Qd1 {[%clk 0:01:21.5]}
44... Qe8 {[%clk 0:00:12.3]} 45. bxa6 {[%clk 0:01:20.3]} 45... Bf7 {[%clk
0:00:13.3]} 46. Qd3 {[%clk 0:01:19]} 46... Qa4 {[%clk 0:00:13]} 47. Rc7 {[%clk
0:01:16.3]} 47... Qa1+ {[%clk 0:00:11.3]} 48. Kh2 {[%clk 0:01:16.6]} 48... Rf8
{[%clk 0:00:11.2]} 49. Rf1 {[%clk 0:01:08.4]} 49... Qa4 {[%clk 0:00:11.2]} 50.
Qf5 {[%clk 0:00:53.9]} 50... Qe8 {[%clk 0:00:11.5]} 51. a7 {[%clk 0:00:53]}
51... Ra8 {[%clk 0:00:12.2]} 52. Rf3 {[%clk 0:00:42.9]} 52... Kg8 {[%clk
0:00:12.4]} 53. Nc6 {[%clk 0:00:39.6]} 53... Bg6 {[%clk 0:00:11.1]} 54. Qd5+
{[%clk 0:00:38]} 54... Kh8 {[%clk 0:00:11.6]} 55. Ne7 {[%clk 0:00:37.4]} 55...
Bf7 {[%clk 0:00:11.6]} 56. Qc5 {[%clk 0:00:37.8]} 56... Qd8 {[%clk 0:00:12]} 57.
e4 {[%clk 0:00:33.4]} 57... Re8 {[%clk 0:00:12.6]} 58. Nf5 {[%clk 0:00:32.5]}
58... Rf8 {[%clk 0:00:11.8]} 59. Nd6 {[%clk 0:00:33.2]} 59... Bg6 {[%clk
0:00:11.1]} 60. f5 {[%clk 0:00:32.6]} 60... Bh7 {[%clk 0:00:11.7]} 61. Nf7+
{[%clk 0:00:32.1]} 1-0

[Event "*** Titled Tuesday Blitz"]
[Site "Chess.com"]
[Date "2020.01.07"]
[Round "9"]
[White "2nd_life"]
[Black "Proteuo"]
[Result "1-0"]
[WhiteElo "2524"]
[BlackElo "2366"]
[TimeControl "180+2"]
[EndTime "15:09:07 PST"]
[Termination "2nd_life won by resignation"]

1. e4 {[%clk 0:03:01.9]} 1... e5 {[%clk 0:02:58.5]} 2. f4 {[%clk 0:03:02.4]}
2... Bc5 {[%clk 0:02:57.9]} 3. Nf3 {[%clk 0:03:03.2]} 3... d6 {[%clk 0:02:58.1]}
4. Nc3 {[%clk 0:03:04.1]} 4... Nf6 {[%clk 0:02:56.1]} 5. Bc4 {[%clk 0:03:02.7]}
5... a6 {[%clk 0:02:55.7]} 6. d3 {[%clk 0:02:58.3]} 6... Nc6 {[%clk 0:02:56]} 7.
Nd5 {[%clk 0:02:48.2]} 7... Be6 {[%clk 0:02:41.9]} 8. fxe5 {[%clk 0:02:41.8]}
8... dxe5 {[%clk 0:02:39.9]} 9. Bg5 {[%clk 0:02:39.6]} 9... Be7 {[%clk 0:02:16]}
10. Nxe7 {[%clk 0:02:37]} 10... Qxe7 {[%clk 0:02:12.5]} 11. Bxe6 {[%clk
0:02:35.9]} 11... Qxe6 {[%clk 0:02:11.9]} 12. Bxf6 {[%clk 0:02:35.5]} 12... Qxf6
{[%clk 0:02:10.1]} 13. O-O {[%clk 0:02:37.4]} 13... Qe7 {[%clk 0:02:02.2]} 14.
Qd2 {[%clk 0:02:33]} 14... O-O-O {[%clk 0:01:56.2]} 15. Qc3 {[%clk 0:02:29.2]}
15... Nd4 {[%clk 0:01:52.5]} 16. Nxd4 {[%clk 0:02:28.7]} 16... Rxd4 {[%clk
0:01:50.6]} 17. Rf3 {[%clk 0:02:25.4]} 17... f6 {[%clk 0:01:50.9]} 18. a3 {[%clk
0:02:24.5]} 18... h5 {[%clk 0:01:45.5]} 19. h3 {[%clk 0:02:24.6]} 19... Rhd8
{[%clk 0:01:38.4]} 20. b4 {[%clk 0:02:23.3]} 20... g5 {[%clk 0:01:28.3]} 21. Rf5
{[%clk 0:02:19]} 21... g4 {[%clk 0:01:26.3]} 22. Rxh5 {[%clk 0:02:17.6]} 22...
gxh3 {[%clk 0:01:26.4]} 23. Rxh3 {[%clk 0:02:18.3]} 23... Rg8 {[%clk 0:01:25.9]}
24. Rf1 {[%clk 0:02:17.8]} 24... Qg7 {[%clk 0:01:18.5]} 25. Rf2 {[%clk
0:02:15.8]} 25... Qg4 {[%clk 0:01:14.4]} 26. Kh2 {[%clk 0:02:14.1]} 26... Rd7
{[%clk 0:01:12.1]} 27. Qe1 {[%clk 0:02:06.4]} 27... Rdg7 {[%clk 0:01:11.2]} 28.
Qe3 {[%clk 0:01:59.4]} 28... Kb8 {[%clk 0:01:04.4]} 29. Qf3 {[%clk 0:01:58.8]}
29... Qg6 {[%clk 0:00:58]} 30. Kh1 {[%clk 0:01:45.6]} 30... Qg5 {[%clk
0:00:48.2]} 31. Qxf6 {[%clk 0:01:38.5]} 31... Qxf6 {[%clk 0:00:42]} 32. Rxf6
{[%clk 0:01:39.3]} 32... Rxg2 {[%clk 0:00:42.5]} 33. Rf8+ {[%clk 0:01:40.1]}
33... Ka7 {[%clk 0:00:34]} 34. Rxg8 {[%clk 0:01:41.1]} 34... Rxg8 {[%clk
0:00:35.5]} 35. Rh5 {[%clk 0:01:42.2]} 35... Re8 {[%clk 0:00:33.8]} 36. Kg2
{[%clk 0:01:43.1]} 36... Kb6 {[%clk 0:00:35.2]} 37. Kf3 {[%clk 0:01:37.4]} 37...
c5 {[%clk 0:00:27]} 38. bxc5+ {[%clk 0:01:33.1]} 38... Kxc5 {[%clk 0:00:27.5]}
39. Ke3 {[%clk 0:01:31.3]} 39... Kd6 {[%clk 0:00:27.1]} 40. c3 {[%clk
0:01:30.4]} 40... Rc8 {[%clk 0:00:26.2]} 41. Kd2 {[%clk 0:01:29.6]} 41... Rc5
{[%clk 0:00:26.6]} 42. Rh6+ {[%clk 0:01:20.5]} 42... Kc7 {[%clk 0:00:26.3]} 43.
Kc2 {[%clk 0:01:12.2]} 43... Ra5 {[%clk 0:00:22.6]} 44. Kb3 {[%clk 0:01:13.2]}
44... Rb5+ {[%clk 0:00:23.7]} 45. Kc4 {[%clk 0:01:14.2]} 45... Ra5 {[%clk
0:00:24]} 46. d4 {[%clk 0:01:09.7]} 46... exd4 {[%clk 0:00:23.7]} 47. cxd4
{[%clk 0:01:10.5]} 47... Rxa3 {[%clk 0:00:24.8]} 48. Rh7+ {[%clk 0:01:08.3]}
48... Kc8 {[%clk 0:00:21.3]} 49. e5 {[%clk 0:01:03.6]} 49... Re3 {[%clk
0:00:18.3]} 50. Kc5 {[%clk 0:01:03.5]} 50... Rc3+ {[%clk 0:00:15.5]} 51. Kd5
{[%clk 0:00:55.4]} 51... Rc7 {[%clk 0:00:15.3]} 52. Rh8+ {[%clk 0:00:55.2]}
52... Kd7 {[%clk 0:00:16]} 53. e6+ {[%clk 0:00:56.3]} 53... Ke7 {[%clk
0:00:16.8]} 54. Ke5 {[%clk 0:00:49.8]} 54... Rc1 {[%clk 0:00:17.6]} 55. Rh7+
{[%clk 0:00:49.7]} 55... Ke8 {[%clk 0:00:16]} 56. Rxb7 {[%clk 0:00:49.3]} 56...
Kd8 {[%clk 0:00:11.9]} 57. Kd6 {[%clk 0:00:49.8]} 57... Kc8 {[%clk 0:00:11.8]}
58. Ra7 {[%clk 0:00:47.3]} 58... Ra1 {[%clk 0:00:08.1]} 59. e7 {[%clk
0:00:47.8]} 59... Re1 {[%clk 0:00:08.4]} 60. Rxa6 {[%clk 0:00:46.6]} 60... Kb7
{[%clk 0:00:08.8]} 61. Ra2 {[%clk 0:00:47.2]} 1-0

[Event "*** Titled Tuesday Blitz"]
[Site "Chess.com"]
[Date "2020.01.07"]
[Round "9"]
[White "Walter_White_Poland"]
[Black "AlexandraBotez"]
[Result "1-0"]
[WhiteElo "2251"]
[BlackElo "2121"]
[TimeControl "180+2"]
[EndTime "15:09:11 PST"]
[Termination "Walter_White_Poland won by resignation"]

1. e4 {[%clk 0:03:01.9]} 1... e5 {[%clk 0:03:01.2]} 2. Nf3 {[%clk 0:03:02.4]}
2... Nc6 {[%clk 0:03:00.1]} 3. Bb5 {[%clk 0:03:02.8]} 3... a6 {[%clk 0:02:57.4]}
4. Ba4 {[%clk 0:03:03.9]} 4... Nf6 {[%clk 0:02:49.7]} 5. O-O {[%clk 0:03:04.3]}
5... d6 {[%clk 0:02:41]} 6. Bxc6+ {[%clk 0:03:02.4]} 6... bxc6 {[%clk
0:02:41.6]} 7. d4 {[%clk 0:03:03.6]} 7... exd4 {[%clk 0:02:40.5]} 8. Nxd4 {[%clk
0:03:04.8]} 8... c5 {[%clk 0:02:34.2]} 9. Nc6 {[%clk 0:02:53.1]} 9... Qd7 {[%clk
0:02:31.1]} 10. Na5 {[%clk 0:02:53.7]} 10... Be7 {[%clk 0:02:25.8]} 11. Nc3
{[%clk 0:02:53.3]} 11... O-O {[%clk 0:02:22.1]} 12. f3 {[%clk 0:02:27.8]} 12...
Rb8 {[%clk 0:02:03.8]} 13. b3 {[%clk 0:02:27]} 13... c6 {[%clk 0:01:57.8]} 14.
e5 {[%clk 0:01:36.1]} 14... dxe5 {[%clk 0:01:53.6]} 15. Nc4 {[%clk 0:01:35.6]}
15... Qc7 {[%clk 0:01:48.9]} 16. Qe1 {[%clk 0:01:19.8]} 16... Nd7 {[%clk
0:01:42]} 17. f4 {[%clk 0:01:07.4]} 17... f6 {[%clk 0:01:28.3]} 18. Qg3 {[%clk
0:00:43.9]} 18... Nb6 {[%clk 0:01:22.6]} 19. Nxb6 {[%clk 0:00:29.6]} 19... Rxb6
{[%clk 0:01:10.7]} 20. Be3 {[%clk 0:00:27.8]} 20... Rb4 {[%clk 0:01:06.7]} 21.
a3 {[%clk 0:00:22.1]} 21... Rb8 {[%clk 0:00:56.9]} 22. Ne4 {[%clk 0:00:17.8]}
22... c4 {[%clk 0:00:55.3]} 23. fxe5 {[%clk 0:00:17.5]} 23... fxe5 {[%clk
0:00:51.3]} 24. Rxf8+ {[%clk 0:00:17.4]} 24... Kxf8 {[%clk 0:00:46.1]} 25. Rf1+
{[%clk 0:00:17.3]} 25... Kg8 {[%clk 0:00:46.9]} 26. bxc4 {[%clk 0:00:17.6]}
26... Be6 {[%clk 0:00:45.4]} 27. Bh6 {[%clk 0:00:17.8]} 27... Bf8 {[%clk
0:00:31.4]} 28. c5 {[%clk 0:00:15.8]} 28... Kh8 {[%clk 0:00:30.2]} 29. Be3
{[%clk 0:00:15]} 29... Bg8 {[%clk 0:00:20.3]} 30. Qg5 {[%clk 0:00:13.6]} 30...
Qe7 {[%clk 0:00:18.3]} 31. Qf5 {[%clk 0:00:13.2]} 31... Qe6 {[%clk 0:00:13.1]}
32. Qf3 {[%clk 0:00:12.6]} 32... h6 {[%clk 0:00:13]} 33. h3 {[%clk 0:00:11.5]}
33... Re8 {[%clk 0:00:13.3]} 34. a4 {[%clk 0:00:10.1]} 34... Be7 {[%clk
0:00:13.2]} 35. Qg3 {[%clk 0:00:09.9]} 35... Bh7 {[%clk 0:00:12.1]} 36. Nd2
{[%clk 0:00:09.2]} 36... Bf6 {[%clk 0:00:11.5]} 37. Qf3 {[%clk 0:00:07.9]} 37...
e4 {[%clk 0:00:12.3]} 38. Qg3 {[%clk 0:00:08.2]} 38... Be5 {[%clk 0:00:13.2]}
39. Qh4 {[%clk 0:00:08.5]} 39... Bf6 {[%clk 0:00:14]} 40. Qg3 {[%clk 0:00:09.3]}
40... Qe7 {[%clk 0:00:10.9]} 41. Qd6 {[%clk 0:00:08.8]} 41... Bg8 {[%clk
0:00:08.9]} 42. Rf2 {[%clk 0:00:05.8]} 42... Qe5 {[%clk 0:00:06.9]} 43. Qxc6
{[%clk 0:00:05.7]} 43... Qa1+ {[%clk 0:00:06.6]} 44. Kh2 {[%clk 0:00:06.1]}
44... Be5+ {[%clk 0:00:05.7]} 45. g3 {[%clk 0:00:07.2]} 45... Bf6 {[%clk
0:00:06.3]} 46. Qxe8 {[%clk 0:00:07.5]} 46... Qe5 {[%clk 0:00:05.6]} 47. Rxf6
{[%clk 0:00:07.5]} 47... gxf6 {[%clk 0:00:05.7]} 48. Qxe5 {[%clk 0:00:08]} 48...
fxe5 {[%clk 0:00:06.4]} 49. Nxe4 {[%clk 0:00:08.8]} 49... Kg7 {[%clk 0:00:05.4]}
50. c6 {[%clk 0:00:09.5]} 50... Be6 {[%clk 0:00:06.5]} 51. c7 {[%clk 0:00:10.2]}
51... Bc8 {[%clk 0:00:07.4]} 52. Nd6 {[%clk 0:00:10.7]} 52... Bd7 {[%clk
0:00:08.2]} 53. c8=Q {[%clk 0:00:11.7]} 53... Bxc8 {[%clk 0:00:09.5]} 54. Nxc8
{[%clk 0:00:13.2]} 54... Kf6 {[%clk 0:00:10.5]} 55. Nb6 {[%clk 0:00:13]} 55...
h5 {[%clk 0:00:11.7]} 56. Kg2 {[%clk 0:00:14]} 56... Ke6 {[%clk 0:00:13]} 57.
Kf3 {[%clk 0:00:14.8]} 57... Kf5 {[%clk 0:00:14.6]} 58. Ke2 {[%clk 0:00:15]}
58... e4 {[%clk 0:00:15.4]} 59. c4 {[%clk 0:00:15.5]} 59... Ke6 {[%clk
0:00:15.9]} 60. a5 {[%clk 0:00:16.5]} 60... Kd6 {[%clk 0:00:16.5]} 61. Kd2
{[%clk 0:00:17.5]} 61... Kc6 {[%clk 0:00:17.8]} 62. Kc3 {[%clk 0:00:18.6]} 1-0

[Event "*** Titled Tuesday Blitz"]
[Site "Chess.com"]
[Date "2020.01.07"]
[Round "9"]
[White "BIG_Pirate"]
[Black "ketster"]
[Result "1-0"]
[WhiteElo "2418"]
[BlackElo "2294"]
[TimeControl "180+2"]
[EndTime "15:09:14 PST"]
[Termination "BIG_Pirate won on time"]

1. Nf3 {[%clk 0:03:01.7]} 1... d5 {[%clk 0:02:57.3]} 2. c4 {[%clk 0:03:02.4]}
2... d4 {[%clk 0:02:57.6]} 3. g3 {[%clk 0:03:03.5]} 3... Nf6 {[%clk 0:02:58.4]}
4. Bg2 {[%clk 0:03:04.9]} 4... c5 {[%clk 0:02:59.2]} 5. e3 {[%clk 0:03:04.7]}
5... Nc6 {[%clk 0:02:59.6]} 6. exd4 {[%clk 0:03:05.1]} 6... cxd4 {[%clk
0:03:01.5]} 7. O-O {[%clk 0:03:05.2]} 7... e6 {[%clk 0:02:53.6]} 8. d3 {[%clk
0:03:05.3]} 8... Be7 {[%clk 0:02:53.8]} 9. Re1 {[%clk 0:02:53.9]} 9... O-O
{[%clk 0:02:54.5]} 10. b3 {[%clk 0:02:48.1]} 10... Nd7 {[%clk 0:02:47.7]} 11.
Ba3 {[%clk 0:02:41.6]} 11... e5 {[%clk 0:02:37.6]} 12. Bxe7 {[%clk 0:02:39.5]}
12... Qxe7 {[%clk 0:02:39.5]} 13. a3 {[%clk 0:02:40.7]} 13... a5 {[%clk
0:02:39.1]} 14. Nbd2 {[%clk 0:02:40.4]} 14... f6 {[%clk 0:02:34.7]} 15. Qc2
{[%clk 0:02:29.6]} 15... Nc5 {[%clk 0:02:30.5]} 16. Ne4 {[%clk 0:02:20.2]} 16...
Nxe4 {[%clk 0:02:28.8]} 17. Rxe4 {[%clk 0:02:22.1]} 17... Bf5 {[%clk 0:02:28.5]}
18. Ree1 {[%clk 0:02:23.7]} 18... g5 {[%clk 0:02:13]} 19. Nd2 {[%clk 0:02:24.3]}
19... Qg7 {[%clk 0:02:10.8]} 20. Bd5+ {[%clk 0:02:21.4]} 20... Kh8 {[%clk
0:02:10.2]} 21. Ne4 {[%clk 0:02:23]} 21... Bh3 {[%clk 0:02:02]} 22. Qd2 {[%clk
0:02:06.5]} 22... h6 {[%clk 0:01:55.1]} 23. b4 {[%clk 0:02:06.8]} 23... f5
{[%clk 0:01:55.3]} 24. Nc5 {[%clk 0:02:04]} 24... f4 {[%clk 0:01:53.4]} 25. b5
{[%clk 0:01:52.4]} 25... fxg3 {[%clk 0:01:46.3]} 26. fxg3 {[%clk 0:01:43.6]}
26... Ne7 {[%clk 0:01:41]} 27. Ne6 {[%clk 0:01:31.8]} 27... Bxe6 {[%clk
0:01:32.5]} 28. Bxe6 {[%clk 0:01:33.7]} 28... b6 {[%clk 0:01:32.1]} 29. Rf1
{[%clk 0:01:28.1]} 29... Rxf1+ {[%clk 0:01:29]} 30. Rxf1 {[%clk 0:01:28.5]}
30... Rf8 {[%clk 0:01:28.5]} 31. Qe2 {[%clk 0:01:24]} 31... Rxf1+ {[%clk
0:01:26.4]} 32. Qxf1 {[%clk 0:01:25.9]} 32... Ng6 {[%clk 0:01:19.7]} 33. Bd5
{[%clk 0:01:17.7]} 33... Qf8 {[%clk 0:01:10.4]} 34. Qh3 {[%clk 0:00:59.6]} 34...
Kg7 {[%clk 0:00:44.2]} 35. Qe6 {[%clk 0:00:33.8]} 35... h5 {[%clk 0:00:23.1]}
36. Be4 {[%clk 0:00:27.1]} 36... Qf6 {[%clk 0:00:15.5]} 37. Qd7+ {[%clk
0:00:24]} 37... Qf7 {[%clk 0:00:14.8]} 38. Qc6 {[%clk 0:00:20.6]} 38... Qf6
{[%clk 0:00:15.3]} 39. Qb7+ {[%clk 0:00:20.6]} 39... Kh6 {[%clk 0:00:14.1]} 40.
c5 {[%clk 0:00:13.1]} 40... bxc5 {[%clk 0:00:13.5]} 41. b6 {[%clk 0:00:14.2]}
41... g4 {[%clk 0:00:07.7]} 42. Qc6 {[%clk 0:00:13.6]} 42... Qxc6 {[%clk
0:00:04.5]} 43. Bxc6 {[%clk 0:00:14.4]} 43... Ne7 {[%clk 0:00:05.9]} 44. Be4
{[%clk 0:00:07.6]} 44... c4 {[%clk 0:00:07]} 45. dxc4 {[%clk 0:00:06.4]} 45...
d3 {[%clk 0:00:07]} 46. Kf2 {[%clk 0:00:05.3]} 46... d2 {[%clk 0:00:06.7]} 47.
Ke2 {[%clk 0:00:06.6]} 1-0